[Event "*** Titled Tuesday Blitz"]
[Site "Chess.com"]
[Date "2020.05.26"]
[Round "2"]
[White "SoltaniciR"]
[Black "zala02"]
[Result "1-0"]
[WhiteElo "2451"]
[BlackElo "2234"]
[TimeControl "180+1"]
[EndTime "10:17:41 PDT"]
[Termination "SoltaniciR won on time"]

1. e4 {[%clk 0:03:00.9]} 1... c5 {[%clk 0:02:57.8]} 2. Nf3 {[%clk 0:03:00.7]}
2... Nc6 {[%clk 0:02:57.1]} 3. Nc3 {[%clk 0:02:59.8]} 3... e5 {[%clk 0:02:22.3]}
4. Bc4 {[%clk 0:02:58.6]} 4... Be7 {[%clk 0:02:19.1]} 5. d3 {[%clk 0:02:58.4]}
5... Nf6 {[%clk 0:02:18.9]} 6. Nd2 {[%clk 0:02:57.4]} 6... d6 {[%clk 0:02:12.3]}
7. Nf1 {[%clk 0:02:57]} 7... a6 {[%clk 0:02:03.1]} 8. a4 {[%clk 0:02:49.3]} 8...
Nd4 {[%clk 0:02:00.3]} 9. Ne3 {[%clk 0:02:48.6]} 9... Be6 {[%clk 0:01:51.5]} 10.
Ncd5 {[%clk 0:02:47.8]} 10... O-O {[%clk 0:01:42.9]} 11. O-O {[%clk 0:02:46.8]}
11... Bxd5 {[%clk 0:01:33.6]} 12. Nxd5 {[%clk 0:02:44.9]} 12... Nxd5 {[%clk
0:01:30.2]} 13. Bxd5 {[%clk 0:02:44.9]} 13... Rb8 {[%clk 0:01:29.2]} 14. f4
{[%clk 0:02:34.8]} 14... b5 {[%clk 0:01:11.4]} 15. axb5 {[%clk 0:02:33.6]} 15...
axb5 {[%clk 0:01:12.3]} 16. fxe5 {[%clk 0:02:16]} 16... dxe5 {[%clk 0:01:11.8]}
17. Ra7 {[%clk 0:02:15.7]} 17... Bf6 {[%clk 0:00:58.6]} 18. c3 {[%clk
0:01:55.9]} 18... Ne6 {[%clk 0:00:57.8]} 19. Qg4 {[%clk 0:01:55.5]} 19... Nc7
{[%clk 0:00:50.7]} 20. Rxc7 {[%clk 0:01:53.9]} 20... Qxc7 {[%clk 0:00:46.5]} 21.
Rxf6 {[%clk 0:01:53.3]} 21... Kh8 {[%clk 0:00:46.7]} 22. Rf5 {[%clk 0:00:46.1]}
22... Rb6 {[%clk 0:00:32.9]} 23. Qf3 {[%clk 0:00:42.6]} 23... f6 {[%clk
0:00:25.9]} 24. Qf1 {[%clk 0:00:11.4]} 24... Ra6 {[%clk 0:00:20.5]} 25. g4
{[%clk 0:00:10.7]} 25... b4 {[%clk 0:00:17.6]} 26. c4 {[%clk 0:00:09.7]} 26...
g6 {[%clk 0:00:13.3]} 27. Rf2 {[%clk 0:00:06.9]} 27... Qd7 {[%clk 0:00:13.1]}
28. h3 {[%clk 0:00:05.5]} 28... Rd6 {[%clk 0:00:11.9]} 29. Bh6 {[%clk
0:00:05.3]} 29... Rd8 {[%clk 0:00:06.5]} 30. Rxf6 {[%clk 0:00:05.7]} 30... Qe7
{[%clk 0:00:01.7]} 31. Rxd6 {[%clk 0:00:05.4]} 1-0

[Event "*** Titled Tuesday Blitz"]
[Site "Chess.com"]
[Date "2020.05.26"]
[Round "2"]
[White "levallem"]
[Black "elisak43"]
[Result "0-1"]
[WhiteElo "2144"]
[BlackElo "2409"]
[TimeControl "180+1"]
[EndTime "10:17:42 PDT"]
[Termination "elisak43 won on time"]

1. d4 {[%clk 0:03:00.9]} 1... d5 {[%clk 0:03:00.9]} 2. c4 {[%clk 0:02:56.4]}
2... Nf6 {[%clk 0:03:01.8]} 3. Nc3 {[%clk 0:02:56.7]} 3... dxc4 {[%clk
0:03:01.2]} 4. e4 {[%clk 0:02:55.7]} 4... e5 {[%clk 0:02:56.4]} 5. d5 {[%clk
0:02:54.3]} 5... Bd6 {[%clk 0:02:38.3]} 6. Bxc4 {[%clk 0:02:52]} 6... O-O {[%clk
0:02:39.2]} 7. Nf3 {[%clk 0:02:48.4]} 7... c6 {[%clk 0:02:30]} 8. Bg5 {[%clk
0:02:44.6]} 8... h6 {[%clk 0:02:29.2]} 9. Bh4 {[%clk 0:02:34]} 9... cxd5 {[%clk
0:02:26.8]} 10. Nxd5 {[%clk 0:02:28.4]} 10... Qa5+ {[%clk 0:02:25.6]} 11. Qd2
{[%clk 0:02:22.9]} 11... Qxd2+ {[%clk 0:02:23.6]} 12. Nxd2 {[%clk 0:02:23.8]}
12... Nxd5 {[%clk 0:02:21.8]} 13. Bxd5 {[%clk 0:02:24.2]} 13... Nc6 {[%clk
0:02:19.9]} 14. O-O {[%clk 0:02:10.1]} 14... Nd4 {[%clk 0:01:51.2]} 15. Nc4
{[%clk 0:02:03.6]} 15... Bc7 {[%clk 0:01:36]} 16. Rfd1 {[%clk 0:01:48]} 16...
Be6 {[%clk 0:01:30.3]} 17. f4 {[%clk 0:01:27.4]} 17... Ne2+ {[%clk 0:01:22.7]}
18. Kf1 {[%clk 0:01:21.2]} 18... Nxf4 {[%clk 0:01:23.6]} 19. Be7 {[%clk
0:01:01.3]} 19... Rfe8 {[%clk 0:01:17]} 20. Bd6 {[%clk 0:01:00.7]} 20... Bxd5
{[%clk 0:01:11.2]} 21. exd5 {[%clk 0:00:57.1]} 21... Bxd6 {[%clk 0:01:03.6]} 22.
Nxd6 {[%clk 0:00:56.8]} 22... Red8 {[%clk 0:01:04.3]} 23. Nxb7 {[%clk 0:00:36]}
23... Rxd5 {[%clk 0:01:02]} 24. Rxd5 {[%clk 0:00:34.5]} 24... Nxd5 {[%clk
0:01:02.9]} 25. Nc5 {[%clk 0:00:31.6]} 25... Rc8 {[%clk 0:00:58.9]} 26. Rc1
{[%clk 0:00:10.7]} 26... Nb4 {[%clk 0:00:55.1]} 27. a3 {[%clk 0:00:10.4]} 27...
Na6 {[%clk 0:00:49.2]} 28. b4 {[%clk 0:00:10.6]} 28... Nxc5 {[%clk 0:00:48.5]}
29. bxc5 {[%clk 0:00:10.4]} 29... Kf8 {[%clk 0:00:46.8]} 30. Ke2 {[%clk
0:00:10.9]} 30... Ke7 {[%clk 0:00:46.1]} 31. Kd3 {[%clk 0:00:11.6]} 31... Ke6
{[%clk 0:00:43.2]} 32. Kc4 {[%clk 0:00:12]} 32... e4 {[%clk 0:00:39.7]} 33. Rd1
{[%clk 0:00:11.7]} 33... f5 {[%clk 0:00:32.7]} 34. Rd6+ {[%clk 0:00:11.3]} 34...
Ke5 {[%clk 0:00:32.6]} 35. Ra6 {[%clk 0:00:11.5]} 35... Rc7 {[%clk 0:00:32.4]}
36. g3 {[%clk 0:00:07.4]} 36... g5 {[%clk 0:00:31.2]} 37. c6 {[%clk 0:00:06.5]}
37... f4 {[%clk 0:00:30.9]} 38. Ra5+ {[%clk 0:00:04.8]} 38... Ke6 {[%clk
0:00:28.2]} 39. Kd4 {[%clk 0:00:04.8]} 39... e3 {[%clk 0:00:26.9]} 40. Re5+
{[%clk 0:00:01.4]} 40... Kf6 {[%clk 0:00:26.8]} 0-1

[Event "*** Titled Tuesday Blitz"]
[Site "Chess.com"]
[Date "2020.05.26"]
[Round "2"]
[White "Joshukid"]
[Black "AEMEffi"]
[Result "1-0"]
[WhiteElo "2618"]
[BlackElo "2298"]
[TimeControl "180+1"]
[EndTime "10:17:43 PDT"]
[Termination "Joshukid won on time"]

1. d4 {[%clk 0:03:00.9]} 1... Nf6 {[%clk 0:02:57.7]} 2. Nc3 {[%clk 0:02:59.3]}
2... d5 {[%clk 0:02:55.7]} 3. Bf4 {[%clk 0:02:59.8]} 3... c6 {[%clk 0:02:52.3]}
4. e3 {[%clk 0:02:59.1]} 4... Bf5 {[%clk 0:02:50.1]} 5. f3 {[%clk 0:02:58]} 5...
e6 {[%clk 0:02:47.4]} 6. g4 {[%clk 0:02:53.3]} 6... Bg6 {[%clk 0:02:47.5]} 7. h4
{[%clk 0:02:54.2]} 7... h5 {[%clk 0:02:44.7]} 8. g5 {[%clk 0:02:52.2]} 8... Ng8
{[%clk 0:02:39.5]} 9. Bd3 {[%clk 0:02:49.2]} 9... Bxd3 {[%clk 0:02:20.8]} 10.
cxd3 {[%clk 0:02:48.3]} 10... Bd6 {[%clk 0:02:21.7]} 11. Nge2 {[%clk 0:02:48]}
11... Ne7 {[%clk 0:02:20.2]} 12. Qd2 {[%clk 0:02:39.3]} 12... Ng6 {[%clk
0:02:09.1]} 13. Bxd6 {[%clk 0:02:36.8]} 13... Qxd6 {[%clk 0:02:10]} 14. f4
{[%clk 0:02:37.7]} 14... Na6 {[%clk 0:02:02.1]} 15. Ng3 {[%clk 0:02:34.6]} 15...
Ne7 {[%clk 0:01:38.4]} 16. e4 {[%clk 0:02:23.7]} 16... c5 {[%clk 0:01:28.1]} 17.
dxc5 {[%clk 0:02:06.5]} 17... Nxc5 {[%clk 0:01:26.8]} 18. e5 {[%clk 0:01:49.4]}
18... Qa6 {[%clk 0:01:24.7]} 19. Ke2 {[%clk 0:01:32.6]} 19... Nc6 {[%clk
0:01:18.7]} 20. Rhd1 {[%clk 0:01:27.4]} 20... Nb4 {[%clk 0:00:54.3]} 21. a3
{[%clk 0:01:04.2]} 21... Nbxd3 {[%clk 0:00:52.7]} 22. Kf3 {[%clk 0:00:55.1]}
22... Nb3 {[%clk 0:00:41.8]} 23. Qxd3 {[%clk 0:00:51.3]} 23... Qxd3+ {[%clk
0:00:42.7]} 24. Rxd3 {[%clk 0:00:52.2]} 24... Nxa1 {[%clk 0:00:42.9]} 25. Nb5
{[%clk 0:00:46.3]} 25... O-O {[%clk 0:00:22.4]} 26. Nd6 {[%clk 0:00:26.3]} 26...
g6 {[%clk 0:00:19.3]} 27. Rc3 {[%clk 0:00:23.5]} 27... a6 {[%clk 0:00:12.9]} 28.
Ne2 {[%clk 0:00:23.2]} 28... b5 {[%clk 0:00:11.1]} 29. Nd4 {[%clk 0:00:23.3]}
29... a5 {[%clk 0:00:07.7]} 30. Rc1 {[%clk 0:00:23.5]} 30... b4 {[%clk
0:00:07.4]} 31. Rxa1 {[%clk 0:00:23.7]} 31... bxa3 {[%clk 0:00:07.2]} 32. Rxa3
{[%clk 0:00:21.5]} 32... Rfb8 {[%clk 0:00:08.1]} 33. b3 {[%clk 0:00:21.9]} 33...
Rb4 {[%clk 0:00:07.7]} 34. Nc6 {[%clk 0:00:20.5]} 34... Rb6 {[%clk 0:00:06.8]}
35. Nxa5 {[%clk 0:00:17.9]} 35... Raa6 {[%clk 0:00:02.6]} 36. Ke3 {[%clk
0:00:16.5]} 1-0

[Event "*** Titled Tuesday Blitz"]
[Site "Chess.com"]
[Date "2020.05.26"]
[Round "2"]
[White "Andreikka"]
[Black "ThePatrick27"]
[Result "1-0"]
[WhiteElo "2940"]
[BlackElo "2580"]
[TimeControl "180+1"]
[EndTime "10:17:44 PDT"]
[Termination "Andreikka won by resignation"]

1. c4 {[%clk 0:03:00.9]} 1... Nf6 {[%clk 0:02:59.2]} 2. Nc3 {[%clk 0:03:00.6]}
2... g6 {[%clk 0:02:56.6]} 3. e4 {[%clk 0:02:58.3]} 3... d6 {[%clk 0:02:56.8]}
4. d4 {[%clk 0:02:58.3]} 4... Bg7 {[%clk 0:02:57.2]} 5. Nf3 {[%clk 0:02:58.9]}
5... O-O {[%clk 0:02:57.7]} 6. Be2 {[%clk 0:02:59.5]} 6... e5 {[%clk 0:02:57.8]}
7. O-O {[%clk 0:03:00.1]} 7... Nc6 {[%clk 0:02:57.7]} 8. d5 {[%clk 0:03:00.8]}
8... Ne7 {[%clk 0:02:57.5]} 9. b4 {[%clk 0:03:01.4]} 9... a5 {[%clk 0:02:55.8]}
10. bxa5 {[%clk 0:03:01.6]} 10... Rxa5 {[%clk 0:02:53.8]} 11. a4 {[%clk
0:03:02.1]} 11... Ne8 {[%clk 0:02:49.8]} 12. Ba3 {[%clk 0:02:57.7]} 12... Bh6
{[%clk 0:02:36.6]} 13. Bb4 {[%clk 0:02:55]} 13... Ra8 {[%clk 0:02:36.3]} 14. c5
{[%clk 0:02:52.1]} 14... f5 {[%clk 0:02:07.3]} 15. cxd6 {[%clk 0:02:45.5]} 15...
cxd6 {[%clk 0:02:08.2]} 16. Nd2 {[%clk 0:02:45.8]} 16... Nf6 {[%clk 0:01:59.8]}
17. Nc4 {[%clk 0:02:39.1]} 17... Ne8 {[%clk 0:01:49.9]} 18. Nb5 {[%clk 0:02:26]}
18... Ra6 {[%clk 0:01:49.3]} 19. Bf3 {[%clk 0:02:14.5]} 19... fxe4 {[%clk
0:01:39.6]} 20. Bxe4 {[%clk 0:02:13.9]} 20... Nf5 {[%clk 0:01:07.2]} 21. Ra3
{[%clk 0:02:12.2]} 21... Rf7 {[%clk 0:01:04.3]} 22. Qe2 {[%clk 0:01:31.5]} 22...
Bf8 {[%clk 0:01:02.9]} 23. a5 {[%clk 0:01:11]} 23... Bd7 {[%clk 0:00:58.7]} 24.
Nb6 {[%clk 0:01:08.5]} 24... Bxb5 {[%clk 0:00:52]} 25. Qxb5 {[%clk 0:01:06.3]}
25... Nd4 {[%clk 0:00:52.6]} 26. Qd3 {[%clk 0:01:03.3]} 26... Nf6 {[%clk
0:00:50.4]} 27. Bc3 {[%clk 0:01:02.6]} 27... Nxe4 {[%clk 0:00:43.3]} 28. Bxd4
{[%clk 0:01:02.2]} 28... Nf6 {[%clk 0:00:40.5]} 29. Be3 {[%clk 0:00:59.7]} 29...
Be7 {[%clk 0:00:36.1]} 30. h3 {[%clk 0:00:57.3]} 30... Qf8 {[%clk 0:00:34.3]}
31. Rc1 {[%clk 0:00:55.8]} 31... Bd8 {[%clk 0:00:33.4]} 32. Rc8 {[%clk
0:00:56.2]} 32... Rc7 {[%clk 0:00:29.7]} 33. Rxc7 {[%clk 0:00:43.7]} 33... Bxc7
{[%clk 0:00:30.6]} 34. Rc3 {[%clk 0:00:43.5]} 34... Bxb6 {[%clk 0:00:30.5]} 35.
Bxb6 {[%clk 0:00:43.1]} 35... Ra8 {[%clk 0:00:29.6]} 36. Rc7 {[%clk 0:00:42.4]}
36... Rc8 {[%clk 0:00:29.6]} 37. Rxb7 {[%clk 0:00:34.6]} 37... Rc1+ {[%clk
0:00:21.5]} 38. Kh2 {[%clk 0:00:34.8]} 38... Qc8 {[%clk 0:00:21.9]} 39. a6
{[%clk 0:00:30.1]} 39... Rc3 {[%clk 0:00:21.9]} 40. Qb5 {[%clk 0:00:26.1]} 40...
Qf5 {[%clk 0:00:18.3]} 41. Be3 {[%clk 0:00:24.3]} 41... Qh5 {[%clk 0:00:12.7]}
42. Rb8+ {[%clk 0:00:24.2]} 42... Kg7 {[%clk 0:00:12.5]} 43. Qb7+ {[%clk
0:00:24.6]} 1-0

[Event "*** Titled Tuesday Blitz"]
[Site "Chess.com"]
[Date "2020.05.26"]
[Round "2"]
[White "Chepaschess"]
[Black "Sergey85Rodchenkov"]
[Result "1-0"]
[WhiteElo "2813"]
[BlackElo "2519"]
[TimeControl "180+1"]
[EndTime "10:17:44 PDT"]
[Termination "Chepaschess won by resignation"]

1. Nf3 {[%clk 0:03:00.9]} 1... d5 {[%clk 0:02:58.9]} 2. d4 {[%clk 0:03:00.5]}
2... Nf6 {[%clk 0:02:58.3]} 3. c4 {[%clk 0:03:00.3]} 3... dxc4 {[%clk
0:02:58.3]} 4. e3 {[%clk 0:03:00.2]} 4... e6 {[%clk 0:02:58.3]} 5. Bxc4 {[%clk
0:03:00.2]} 5... c5 {[%clk 0:02:58.4]} 6. O-O {[%clk 0:03:00.4]} 6... a6 {[%clk
0:02:58.7]} 7. Re1 {[%clk 0:02:58.8]} 7... Nc6 {[%clk 0:02:55.6]} 8. Nc3 {[%clk
0:02:50.3]} 8... Be7 {[%clk 0:02:49.7]} 9. dxc5 {[%clk 0:02:48]} 9... Qxd1
{[%clk 0:02:48.8]} 10. Rxd1 {[%clk 0:02:48.9]} 10... Bxc5 {[%clk 0:02:48.9]} 11.
Bd2 {[%clk 0:02:46.8]} 11... O-O {[%clk 0:02:43.2]} 12. Rac1 {[%clk 0:02:46.7]}
12... Rd8 {[%clk 0:02:26.7]} 13. Be2 {[%clk 0:02:41.5]} 13... Ba7 {[%clk
0:02:21.4]} 14. Na4 {[%clk 0:02:32.3]} 14... Ne4 {[%clk 0:02:11.6]} 15. Be1
{[%clk 0:02:31.6]} 15... Rxd1 {[%clk 0:02:08.9]} 16. Rxd1 {[%clk 0:02:30]} 16...
b5 {[%clk 0:01:57.8]} 17. Ne5 {[%clk 0:01:40.2]} 17... Bb7 {[%clk 0:01:54.7]}
18. Nxc6 {[%clk 0:01:26.1]} 18... Bxc6 {[%clk 0:01:54.4]} 19. Nc3 {[%clk
0:01:27]} 19... Nxc3 {[%clk 0:01:47]} 20. Bxc3 {[%clk 0:01:27.9]} 20... Bd5
{[%clk 0:01:47.2]} 21. Bf3 {[%clk 0:01:22.6]} 21... Bxf3 {[%clk 0:01:36]} 22.
gxf3 {[%clk 0:01:23.5]} 22... Bc5 {[%clk 0:01:28.5]} 23. Rd7 {[%clk 0:01:19.4]}
23... Rc8 {[%clk 0:01:20.4]} 24. f4 {[%clk 0:01:15.1]} 24... Bf8 {[%clk
0:01:05.9]} 25. Ra7 {[%clk 0:01:10.7]} 25... b4 {[%clk 0:00:59.5]} 26. Bd4
{[%clk 0:01:09.5]} 26... Rc6 {[%clk 0:00:56.5]} 27. Kg2 {[%clk 0:01:05]} 27...
f6 {[%clk 0:00:56.6]} 28. Kf3 {[%clk 0:01:04.8]} 28... h6 {[%clk 0:00:45.3]} 29.
Ke4 {[%clk 0:00:59.6]} 29... h5 {[%clk 0:00:36.5]} 30. Kd3 {[%clk 0:00:54.7]}
30... Bd6 {[%clk 0:00:30.2]} 31. Ke4 {[%clk 0:00:42.1]} 31... Bf8 {[%clk
0:00:25.5]} 32. h3 {[%clk 0:00:41.1]} 32... Bd6 {[%clk 0:00:24.5]} 33. Rb7
{[%clk 0:00:37.4]} 33... Bf8 {[%clk 0:00:23.7]} 34. Rb6 {[%clk 0:00:30.3]} 34...
Rc2 {[%clk 0:00:20.2]} 35. Rxe6 {[%clk 0:00:27.4]} 35... Rxf2 {[%clk 0:00:19.2]}
36. Rxa6 {[%clk 0:00:27]} 36... Rh2 {[%clk 0:00:19.4]} 37. a4 {[%clk 0:00:24.7]}
37... bxa3 {[%clk 0:00:18.9]} 38. bxa3 {[%clk 0:00:25.6]} 38... Rxh3 {[%clk
0:00:19.3]} 39. a4 {[%clk 0:00:25.7]} 39... Rh1 {[%clk 0:00:19.4]} 40. Ra8
{[%clk 0:00:25.9]} 40... Kf7 {[%clk 0:00:17.8]} 41. a5 {[%clk 0:00:25.7]} 41...
Rh2 {[%clk 0:00:18.1]} 42. a6 {[%clk 0:00:25.7]} 42... Ra2 {[%clk 0:00:18.6]}
43. a7 {[%clk 0:00:24.3]} 43... h4 {[%clk 0:00:18.6]} 44. Rb8 {[%clk 0:00:23.7]}
44... h3 {[%clk 0:00:18.5]} 45. a8=Q {[%clk 0:00:23]} 45... Rxa8 {[%clk
0:00:17.9]} 46. Rxa8 {[%clk 0:00:23]} 1-0

[Event "*** Titled Tuesday Blitz"]
[Site "Chess.com"]
[Date "2020.05.26"]
[Round "2"]
[White "Baby_Shak"]
[Black "SameerMujumdar"]
[Result "0-1"]
[WhiteElo "2620"]
[BlackElo "2309"]
[TimeControl "180+1"]
[EndTime "10:17:44 PDT"]
[Termination "SameerMujumdar won on time"]

1. d4 {[%clk 0:03:00.8]} 1... Nf6 {[%clk 0:02:55.3]} 2. Bf4 {[%clk 0:03:00.4]}
2... g6 {[%clk 0:02:54.6]} 3. Nc3 {[%clk 0:03:00.2]} 3... Bg7 {[%clk 0:02:54.9]}
4. e4 {[%clk 0:03:00.3]} 4... d6 {[%clk 0:02:55.2]} 5. f3 {[%clk 0:02:55.7]}
5... Nc6 {[%clk 0:02:52.2]} 6. Qd2 {[%clk 0:02:51.8]} 6... O-O {[%clk 0:02:42]}
7. O-O-O {[%clk 0:02:48.3]} 7... a6 {[%clk 0:02:27.3]} 8. Bh6 {[%clk 0:02:42.5]}
8... e5 {[%clk 0:02:24.2]} 9. Bxg7 {[%clk 0:02:29.2]} 9... Kxg7 {[%clk
0:02:23.9]} 10. Nge2 {[%clk 0:02:29.6]} 10... b5 {[%clk 0:02:12.1]} 11. g4
{[%clk 0:02:21.6]} 11... b4 {[%clk 0:02:00.1]} 12. Nd5 {[%clk 0:02:18.9]} 12...
Nxd5 {[%clk 0:01:34.6]} 13. exd5 {[%clk 0:02:18.8]} 13... Nxd4 {[%clk
0:01:35.5]} 14. Nxd4 {[%clk 0:02:19.7]} 14... exd4 {[%clk 0:01:36.4]} 15. Qxd4+
{[%clk 0:02:20.2]} 15... Qf6 {[%clk 0:01:37.3]} 16. Qxb4 {[%clk 0:01:50.1]}
16... Qxf3 {[%clk 0:01:27.8]} 17. Bd3 {[%clk 0:01:50]} 17... Qxg4 {[%clk
0:01:08.9]} 18. Qc3+ {[%clk 0:01:49.5]} 18... Kg8 {[%clk 0:01:08.4]} 19. Rdf1
{[%clk 0:01:37.3]} 19... Qg5+ {[%clk 0:01:07.8]} 20. Kb1 {[%clk 0:01:36.7]}
20... Qxd5 {[%clk 0:01:06.4]} 21. Bc4 {[%clk 0:01:36.9]} 21... Qe5 {[%clk
0:01:05.7]} 22. Qd3 {[%clk 0:00:31.4]} 22... Rb8 {[%clk 0:01:03.2]} 23. Bb3
{[%clk 0:00:27.9]} 23... Bf5 {[%clk 0:00:59.6]} 24. Qd2 {[%clk 0:00:27.6]} 24...
a5 {[%clk 0:00:54.3]} 25. Re1 {[%clk 0:00:27.1]} 25... Qg7 {[%clk 0:00:46.8]}
26. Qxa5 {[%clk 0:00:25.7]} 26... c5 {[%clk 0:00:42.3]} 27. Qa4 {[%clk
0:00:22.1]} 27... Rb4 {[%clk 0:00:39.2]} 28. Qa5 {[%clk 0:00:20.9]} 28... Rfb8
{[%clk 0:00:39.5]} 29. Ka1 {[%clk 0:00:08.2]} 29... Bxc2 {[%clk 0:00:36]} 30.
Re2 {[%clk 0:00:03.2]} 30... Bxb3 {[%clk 0:00:29.9]} 31. axb3 {[%clk 0:00:03.9]}
31... Rxb3 {[%clk 0:00:29.3]} 32. Rhe1 {[%clk 0:00:04]} 32... h6 {[%clk
0:00:23.9]} 0-1

[Event "*** Titled Tuesday Blitz"]
[Site "Chess.com"]
[Date "2020.05.26"]
[Round "2"]
[White "Pavalamalli"]
[Black "Roman_Ovetchkin"]
[Result "1-0"]
[WhiteElo "2285"]
[BlackElo "2612"]
[TimeControl "180+1"]
[EndTime "10:17:45 PDT"]
[Termination "Pavalamalli won on time"]

1. e4 {[%clk 0:02:58.9]} 1... c6 {[%clk 0:02:58.6]} 2. d4 {[%clk 0:02:58.3]}
2... d5 {[%clk 0:02:59.5]} 3. exd5 {[%clk 0:02:58.1]} 3... cxd5 {[%clk
0:02:59.5]} 4. Bf4 {[%clk 0:02:58.2]} 4... Nc6 {[%clk 0:02:56.8]} 5. c3 {[%clk
0:02:57.8]} 5... Nf6 {[%clk 0:02:56]} 6. h3 {[%clk 0:02:53.3]} 6... Bf5 {[%clk
0:02:45.2]} 7. Nf3 {[%clk 0:02:52.3]} 7... a6 {[%clk 0:02:43.9]} 8. Nbd2 {[%clk
0:02:49.7]} 8... e6 {[%clk 0:02:43.7]} 9. Be2 {[%clk 0:02:49.2]} 9... Bd6 {[%clk
0:02:42.3]} 10. Bxd6 {[%clk 0:02:48.9]} 10... Qxd6 {[%clk 0:02:42.7]} 11. O-O
{[%clk 0:02:48.9]} 11... O-O {[%clk 0:02:41.4]} 12. Re1 {[%clk 0:02:47.5]} 12...
Rfe8 {[%clk 0:02:37.8]} 13. Bf1 {[%clk 0:02:40.1]} 13... Qc7 {[%clk 0:02:34.3]}
14. Ne5 {[%clk 0:02:36.3]} 14... Nxe5 {[%clk 0:02:32.5]} 15. dxe5 {[%clk
0:02:35.4]} 15... Nd7 {[%clk 0:02:31.7]} 16. Nf3 {[%clk 0:02:17.4]} 16... Be4
{[%clk 0:02:27.1]} 17. Bd3 {[%clk 0:02:15.5]} 17... Bxf3 {[%clk 0:01:17.8]} 18.
Qxf3 {[%clk 0:02:11.6]} 18... Nxe5 {[%clk 0:01:17.6]} 19. Bxh7+ {[%clk
0:02:09.5]} 19... Kxh7 {[%clk 0:01:18.5]} 20. Qh5+ {[%clk 0:02:09]} 20... Kg8
{[%clk 0:01:19.1]} 21. Rxe5 {[%clk 0:02:08.5]} 21... g6 {[%clk 0:01:18.8]} 22.
Qg5 {[%clk 0:01:53.2]} 22... Kg7 {[%clk 0:01:15.7]} 23. Re3 {[%clk 0:01:47.8]}
23... Qe7 {[%clk 0:00:59.8]} 24. Qe5+ {[%clk 0:01:43.9]} 24... Qf6 {[%clk
0:00:59.6]} 25. Qg3 {[%clk 0:01:29.6]} 25... Rad8 {[%clk 0:00:38.4]} 26. Rae1
{[%clk 0:01:25.4]} 26... Rh8 {[%clk 0:00:21.6]} 27. Qc7 {[%clk 0:01:11.7]} 27...
Rh5 {[%clk 0:00:13.9]} 28. Rf3 {[%clk 0:00:58.9]} 28... Rf5 {[%clk 0:00:13.2]}
29. Rxf5 {[%clk 0:00:55.8]} 29... gxf5 {[%clk 0:00:14.1]} 30. Qxb7 {[%clk
0:00:54.2]} 30... d4 {[%clk 0:00:14.3]} 31. cxd4 {[%clk 0:00:51.8]} 31... Qxd4
{[%clk 0:00:14.5]} 32. Qxa6 {[%clk 0:00:43.1]} 32... Qxb2 {[%clk 0:00:13.9]} 33.
Qe2 {[%clk 0:00:36.9]} 33... Rd2 {[%clk 0:00:10.9]} 34. Qf3 {[%clk 0:00:29.9]}
34... Qxa2 {[%clk 0:00:09.6]} 35. Qg3+ {[%clk 0:00:29.1]} 35... Kf8 {[%clk
0:00:05.8]} 36. Rc1 {[%clk 0:00:27.7]} 36... Rd8 {[%clk 0:00:03.4]} 37. Qh4
{[%clk 0:00:25]} 37... Qb2 {[%clk 0:00:02.2]} 38. Qxd8+ {[%clk 0:00:23.5]} 1-0

[Event "*** Titled Tuesday Blitz"]
[Site "Chess.com"]
[Date "2020.05.26"]
[Round "2"]
[White "Angry_Twin"]
[Black "axvesik"]
[Result "1-0"]
[WhiteElo "2844"]
[BlackElo "2540"]
[TimeControl "180+1"]
[EndTime "10:17:47 PDT"]
[Termination "Angry_Twin won by resignation"]

1. e4 {[%clk 0:03:00.9]} 1... e6 {[%clk 0:02:59.9]} 2. d4 {[%clk 0:03:00.5]}
2... d5 {[%clk 0:03:00.8]} 3. Nd2 {[%clk 0:03:01.1]} 3... c5 {[%clk 0:03:00.4]}
4. exd5 {[%clk 0:03:01.4]} 4... Qxd5 {[%clk 0:03:01.2]} 5. Ngf3 {[%clk 0:03:02]}
5... cxd4 {[%clk 0:03:01.5]} 6. Bc4 {[%clk 0:03:02.5]} 6... Qd7 {[%clk
0:03:02.2]} 7. O-O {[%clk 0:03:01.9]} 7... Nc6 {[%clk 0:03:03.1]} 8. Nb3 {[%clk
0:03:02.2]} 8... a6 {[%clk 0:03:03.8]} 9. Nbxd4 {[%clk 0:03:02.3]} 9... Nxd4
{[%clk 0:03:04.5]} 10. Nxd4 {[%clk 0:03:03.2]} 10... Qc7 {[%clk 0:03:04.8]} 11.
Bb3 {[%clk 0:03:01.8]} 11... Bd6 {[%clk 0:03:03.7]} 12. h3 {[%clk 0:03:01.5]}
12... Nf6 {[%clk 0:03:02.5]} 13. Qf3 {[%clk 0:02:59.4]} 13... O-O {[%clk
0:02:59.5]} 14. Bg5 {[%clk 0:02:59.4]} 14... Be5 {[%clk 0:02:54.6]} 15. c3
{[%clk 0:02:58.8]} 15... Bd7 {[%clk 0:02:47.4]} 16. Rac1 {[%clk 0:02:54.1]}
16... Rac8 {[%clk 0:02:39.2]} 17. Rfe1 {[%clk 0:02:53.5]} 17... h6 {[%clk
0:02:39]} 18. Be3 {[%clk 0:02:52.5]} 18... Rfd8 {[%clk 0:02:34.2]} 19. Qe2
{[%clk 0:02:51.9]} 19... Bh2+ {[%clk 0:02:32.2]} 20. Kh1 {[%clk 0:02:51.7]}
20... Bd6 {[%clk 0:02:33]} 21. Qf3 {[%clk 0:02:46.8]} 21... Bc5 {[%clk
0:02:24.3]} 22. Kg1 {[%clk 0:02:05.9]} 22... b5 {[%clk 0:01:44]} 23. Bxh6 {[%clk
0:01:57.5]} 23... Be7 {[%clk 0:01:35.6]} 24. Bf4 {[%clk 0:01:56.7]} 24... Qb6
{[%clk 0:01:34.7]} 25. Be5 {[%clk 0:01:56.6]} 25... b4 {[%clk 0:01:32.1]} 26.
cxb4 {[%clk 0:01:54.9]} 26... Qxb4 {[%clk 0:01:30.5]} 27. Red1 {[%clk
0:01:53.3]} 27... a5 {[%clk 0:01:26.7]} 28. Rxc8 {[%clk 0:01:41.3]} 28... Rxc8
{[%clk 0:01:25.7]} 29. Nc2 {[%clk 0:01:41]} 29... Qb5 {[%clk 0:01:13.1]} 30. Bc3
{[%clk 0:00:30.9]} 30... a4 {[%clk 0:01:01.5]} 31. Nd4 {[%clk 0:00:31]} 31...
Qb6 {[%clk 0:00:59.4]} 32. Bc2 {[%clk 0:00:30.7]} 32... a3 {[%clk 0:00:46.5]}
33. bxa3 {[%clk 0:00:25.4]} 33... Bxa3 {[%clk 0:00:46.6]} 34. Bb3 {[%clk
0:00:22.3]} 34... Be7 {[%clk 0:00:43.2]} 35. Ne2 {[%clk 0:00:21.1]} 35... Bc6
{[%clk 0:00:39.1]} 36. Qg3 {[%clk 0:00:21.2]} 36... Be4 {[%clk 0:00:37.5]} 37.
Bd4 {[%clk 0:00:20.8]} 37... Qa6 {[%clk 0:00:35.6]} 38. Nc3 {[%clk 0:00:21]}
38... Bf5 {[%clk 0:00:33.9]} 39. Be5 {[%clk 0:00:21.3]} 39... Qa5 {[%clk
0:00:31.7]} 40. Ne2 {[%clk 0:00:20.2]} 40... Qc5 {[%clk 0:00:25.7]} 41. Nd4
{[%clk 0:00:18.2]} 41... Bg6 {[%clk 0:00:24.5]} 42. Nxe6 {[%clk 0:00:14.5]}
42... fxe6 {[%clk 0:00:24.9]} 43. Bxe6+ {[%clk 0:00:14.7]} 43... Kf8 {[%clk
0:00:25.3]} 44. Bxc8 {[%clk 0:00:15.1]} 44... Qxc8 {[%clk 0:00:25.6]} 45. Qxg6
{[%clk 0:00:15.4]} 45... Qe6 {[%clk 0:00:24.9]} 46. Bxf6 {[%clk 0:00:14.7]}
46... Bxf6 {[%clk 0:00:24.7]} 47. Rd8+ {[%clk 0:00:14.4]} 1-0